fUST/lending_fUST_20251231
["ID","MTS","AMOUNT","RATE_DAILY","PERIOD"]
[400114816,1767132640883,-267.37089605,0.00013699,2]
[400114817,1767132640891,-158.08534046,0.00013699,2]
[400114819,1767132640901,-501.17963046,0.00013699,2]
[400114821,1767132640910,-500.74703084,0.00013699,2]
[400114823,1767132640920,-9663.35946172,0.00013703,2]
[400114825,1767132640929,-500.0,0.00013821,2]
[400114827,1767132640939,-1000.0,0.00013821,2]
[400114829,1767132640948,-880.82741627,0.00013821,2]
[400114830,1767132640957,-1000.0,0.00013821,2]
[400114833,1767132640967,-1000.0,0.00013821,2]
[400114834,1767132640977,-1000.0,0.00013821,2]
[400114836,1767132640986,-1000.0,0.00013821,2]
[400114838,1767132640995,-1000.0,0.00013821,2]
[400114840,1767132641004,-500.65462418,0.00013821,2]
[400114842,1767132641014,-1001.17509357,0.00013821,2]
[400114844,1767132641024,-500.96078162,0.00013821,2]
[400114846,1767132641033,-1000.0,0.00013821,2]
[400114848,1767132641042,-529.57538183,0.00013821,2]
[400114850,1767132641052,-1000.0,0.00013821,2]
[400114852,1767132641062,-1000.0,0.00013821,2]
[400114854,1767132641071,-1000.0,0.00013821,2]
[400114855,1767132641080,-1000.0,0.00013821,2]
[400114857,1767132641090,-1000.0,0.00013821,2]
[400114859,1767132641099,-1000.0,0.00013821,2]
[400114861,1767132641108,-1000.0,0.00013821,2]
[400114863,1767132641117,-676.8974901,0.00013821,2]
[400114865,1767132641127,-500.61848395,0.00013821,2]
[400114867,1767132641136,-1000.0,0.00013821,2]
[400114868,1767132641145,-1001.51940967,0.00013821,2]
[400114870,1767132641155,-1000.0,0.00013821,2]
[400114872,1767132641164,-1001.61542558,0.00013821,2]
[400114874,1767132641174,-1000.0,0.00013821,2]
[400114876,1767132641183,-1000.0,0.00013821,2]
[400114878,1767132641193,-1000.0,0.00013821,2]
[400114880,1767132641202,-1000.0,0.00013821,2]
[400114882,1767132641212,-1000.0,0.00013821,2]
[400114884,1767132641221,-1000.0,0.00013821,2]
[400114886,1767132641230,-1000.0,0.00013821,2]
[400114888,1767132641240,-1000.0,0.00013821,2]
[400114890,1767132641249,-519.80046235,0.00013821,2]
[400114892,1767132641259,-1000.0,0.00013821,2]
[400114894,1767132641269,-1000.0,0.00013821,2]
[400114896,1767132641279,-493.85504608,0.00013821,2]
[400114898,1767132641288,-499.76525701,0.00013821,2]
[400114900,1767132641297,-1000.0,0.00013821,2]
[400114902,1767132641306,-1000.0,0.00013821,2]
[400114903,1767132641315,-1000.0,0.00013821,2]
[400114905,1767132641324,-1000.0,0.00013821,2]
[400114907,1767132641333,-1000.0,0.00013821,2]
[400114909,1767132641343,-459.70529653,0.00013821,2]
[400114911,1767132641352,-1000.0,0.00013821,2]
[400114913,1767132641361,-205.15331255,0.00013821,2]
[400114915,1767132641370,-1000.0,0.00013821,2]
[400114917,1767132641380,-1000.0,0.00013821,2]
[400114919,1767132641390,-163.49309026,0.00013973,2]
[400114921,1767132641400,-755.93,0.00013978,2]
[400114923,1767132641408,-151.0,0.00014058,2]
[400114925,1767132641417,-151.0,0.00014058,2]
[400114927,1767132641426,-151.0,0.00014058,2]
[400114928,1767132641435,-500.0,0.00014095,2]
[400114930,1767132641445,-600.0,0.00014221,2]
[400114932,1767132641454,-1477.93,0.00014229,2]
[400114934,1767132641464,-501.26449218,0.00014247,2]
[400114936,1767132641474,-609.01134723,0.00014247,2]
[400114938,1767132641484,-1001.93029299,0.00014247,2]
[400114940,1767132641493,-1000.0,0.00014247,2]
[400114942,1767132641504,-1000.87409602,0.00014247,2]
[400114944,1767132641514,-1002.56460974,0.00014247,2]
[400114946,1767132641523,-500.29842762,0.00014247,2]
[400114948,1767132641533,-500.23104155,0.00014247,2]
[400114950,1767132641543,-1000.0,0.00014247,2]
[400114952,1767132641553,-500.0,0.00014247,2]
[400114954,1767132641562,-542.67834367,0.00014247,2]
[400114956,1767132641572,-500.87185466,0.00014247,2]
[400114958,1767132641581,-501.17569243,0.00014247,2]
[400114960,1767132641591,-500.49105905,0.00014247,2]
[400114962,1767132641601,-536.35203428,0.00014247,2]
[400114964,1767132641610,-1000.0,0.00014247,2]
[400114966,1767132641619,-501.96173008,0.00014247,2]
[400114968,1767132641628,-1000.6,0.00014247,2]
[400114970,1767132641637,-164.39071824,0.00014247,2]
[400114972,1767132641646,-501.34998348,0.00014247,2]
[400114974,1767132641654,-1000.0,0.00014247,2]
[400114976,1767132641664,-1135.30832269,0.00014247,2]
[400114978,1767132641674,-1000.0,0.00014247,2]
[400114980,1767132641684,-1002.01044131,0.00014247,2]
[400114981,1767132641694,-502.45343875,0.00014247,2]
[400114983,1767132641703,-501.26232014,0.00014247,2]
[400114985,1767132641712,-1000.0,0.00014247,2]
[400114987,1767132641721,-1011.97065526,0.00014247,2]
[400114989,1767132641731,-1000.0,0.00014247,2]
[400114991,1767132641741,-1000.0,0.00014247,2]
[400114993,1767132641751,-658.752585,0.00014247,2]
[400114995,1767132641760,-658.752585,0.00014247,2]
[400114997,1767132641769,-658.752585,0.00014247,2]
[400114999,1767132641779,-658.752585,0.00014247,2]
[400115001,1767132641788,-151.0,0.00014247,2]
[400115003,1767132641798,-508.82405174,0.00014355,2]
[400115014,1767132641900,-1474.71335409,0.00014368,2]
[400115016,1767132641910,-1500.0,0.00014368,2]
[400115018,1767132641919,-543.97913442,0.00014368,2]
[400115020,1767132641929,-1500.0,0.00014368,2]
[400115022,1767132641939,-1500.0,0.00014368,2]
[400115024,1767132641948,-1196.6356977,0.00014368,2]
[400115026,1767132641957,-1500.0,0.00014368,2]
[400115028,1767132641966,-500.0,0.00014368,2]
[400115030,1767132641975,-553.36780836,0.00014368,2]
[400115032,1767132641984,-1500.0,0.00014368,2]
[400115034,1767132641993,-1500.0,0.00014368,2]
[400115036,1767132642003,-304.17357408,0.00014368,2]
[400115038,1767132642012,-1500.0,0.00014368,2]
[400115039,1767132642022,-1500.0,0.00014368,2]
[400115041,1767132642031,-1132.2043907,0.00014368,2]
[400115043,1767132642040,-1500.0,0.00014368,2]
[400115045,1767132642049,-1500.0,0.00014368,2]
[400115047,1767132642058,-1182.79236515,0.00014368,2]
[400115049,1767132642068,-1500.0,0.00014368,2]
[400115051,1767132642077,-238.68810806,0.00014368,2]
[400115053,1767132642086,-1500.0,0.00014368,2]
[400115055,1767132642095,-1500.0,0.00014368,2]
[400115057,1767132642105,-1500.0,0.00014368,2]
[400115059,1767132642114,-1500.0,0.00014368,2]
[400115061,1767132642124,-1500.0,0.00014368,2]
[400115063,1767132642133,-1500.0,0.00014368,2]
[400115065,1767132642143,-1159.38531226,0.00014368,2]
[400115067,1767132642152,-1500.0,0.00014368,2]
[400115069,1767132642160,-602.08725068,0.00014368,2]
[400115071,1767132642169,-1500.0,0.00014368,2]
[400115072,1767132642178,-848.74032619,0.00014368,2]
[400115074,1767132642196,-153.38433205,0.00014368,2]
[400115076,1767132642205,-1500.0,0.00014368,2]
[400115078,1767132642215,-1500.0,0.00014368,2]
[400115080,1767132642224,-1500.0,0.00014368,2]
[400115082,1767132642233,-420.0,0.00014439,2]
[400115084,1767132642243,-420.0,0.00014439,2]
[400115086,1767132642262,-215.0,0.00014439,2]
[400115087,1767132642271,-263.0,0.00014441,2]
[400115088,1767132642281,-1680.0,0.00014485,2]
[400115089,1767132642290,-500.0,0.00014642,2]
[400115090,1767132642299,-500.0,0.00014732,2]
[400115091,1767132642309,-500.0,0.00014732,2]
[400115092,1767132642319,-500.0,0.00014732,2]
[400115094,1767132642328,-507.59575154,0.00014733,2]
[400115096,1767132642338,-500.0,0.00014733,2]
[400115098,1767132642347,-528.98647481,0.00014733,2]
[400115100,1767132642356,-500.0,0.00014733,2]
[400115102,1767132642365,-528.29778119,0.00014733,2]
[400115104,1767132642375,-298.4228942,0.00014768,2]
[400115106,1767132642384,-1500.0,0.00014795,2]
[400115108,1767132642395,-1002.36383556,0.00014795,2]
[400115110,1767132642405,-502.96369924,0.00014795,2]
[400115112,1767132642414,-157.0996811,0.00014795,2]
[400115114,1767132642423,-1001.88391057,0.00014795,2]
[400115116,1767132642433,-501.28240001,0.00014795,2]
[400115118,1767132642441,-1500.0,0.00014795,2]
[400115120,1767132642451,-1500.0,0.00014795,2]
[400115122,1767132642460,-1847.41,0.00014822,2]
[400115124,1767132642469,-329.60274847,0.00014916,2]
[400115126,1767132642479,-2000.0,0.00014916,2]
[400115128,1767132642488,-2000.0,0.00014916,2]
[400115129,1767132642498,-1505.03427004,0.00014916,2]
[400115131,1767132642512,-286.46296752,0.00014916,2]
[400115133,1767132642522,-530.60034306,0.00014916,2]
[400115135,1767132642531,-152.69291493,0.00014916,2]
[400115137,1767132642541,-2000.0,0.00014916,2]
[400115140,1767132642551,-345.67383006,0.00014916,2]
[400115141,1767132642561,-2000.0,0.00014916,2]
[400115143,1767132642570,-1575.53869932,0.00014916,2]
[400115145,1767132642580,-1333.32855576,0.00014916,2]
[400115147,1767132642591,-1705.87434732,0.00014916,2]
[400115150,1767132642601,-153.33728789,0.00014916,2]
[400115151,1767132642611,-2000.0,0.00014916,2]
[400115154,1767132642620,-2000.0,0.00014916,2]
[400115156,1767132642630,-2000.0,0.00014916,2]
[400115158,1767132642640,-2000.0,0.00014916,2]
[400115160,1767132642650,-503.02616745,0.00014916,2]
[400115163,1767132642659,-1898.94970718,0.00014916,2]
[400115165,1767132642669,-2000.0,0.00014916,2]
[400115168,1767132642679,-2000.0,0.00014916,2]
[400115171,1767132642688,-2000.0,0.00014916,2]
[400115173,1767132642697,-236.34192972,0.00014917,2]
[400115175,1767132642707,-241.0,0.00015,2]
[400115177,1767132642716,-658.752585,0.00015028,2]
[400115179,1767132642724,-658.752585,0.00015028,2]
[400115181,1767132642734,-658.752585,0.00015028,2]
[400115183,1767132642743,-658.752585,0.00015028,2]
[400115185,1767132642754,-151.0,0.00015028,2]
[400115187,1767132642763,-151.0,0.00015028,2]
[400115189,1767132642774,-151.0,0.00015028,2]
[400115191,1767132642783,-151.0,0.00015028,2]
[400115193,1767132642792,-151.0,0.00015028,2]
[400115195,1767132642802,-151.0,0.00015028,2]
[400115197,1767132642811,-96037.67640377,0.00015028,2]
[400115199,1767132642820,-2621.34456173,0.00015244,2]
[400115201,1767132642830,-1742.43696975,0.00015263,2]
[400115203,1767132642839,-802.96487012,0.00015342,2]
[400115205,1767132642849,-2000.0,0.00015342,2]
[400115207,1767132642859,-2000.0,0.00015342,2]
[400115209,1767132642868,-2216.89,0.00015415,2]
[400115211,1767132642877,-2338.65201998,0.00015464,2]
[400115213,1767132642887,-2500.0,0.00015464,2]
[400115215,1767132642897,-266.73162538,0.00015464,2]
[400115217,1767132642907,-2572.1911069,0.00015464,2]
[400115219,1767132642917,-268.17522063,0.00015464,2]
[400115221,1767132642926,-2567.25525094,0.00015464,2]
[400115223,1767132642935,-1886.7907358,0.00015464,2]
[400115225,1767132642945,-2500.0,0.00015464,2]
[400115227,1767132642954,-2500.0,0.00015464,2]
[400115229,1767132642963,-2500.0,0.00015464,2]
[400115231,1767132642972,-2500.0,0.00015464,2]
[400115233,1767132642982,-302.0,0.00015832,2]
[400115235,1767132642991,-587.0,0.00015832,2]
[400115237,1767132643001,-2500.0,0.0001589,2]
[400115239,1767132643010,-2500.0,0.0001589,2]
[400115241,1767132643019,-2351.0,0.00015934,2]
[400115243,1767132643028,-2586.37,0.00016008,2]
[400115245,1767132643038,-3000.0,0.00016012,2]
[400115247,1767132643048,-1018.30844147,0.00016012,2]
[400115249,1767132643057,-3000.0,0.00016012,2]
[400115251,1767132643066,-1507.11670617,0.00016012,2]
[400115253,1767132643075,-3000.0,0.00016012,2]
[400115255,1767132643084,-500.0,0.00016438,2]
[400115257,1767132643093,-500.0,0.00016438,2]
[400115259,1767132643103,-635.37358436,0.00016438,2]
[400115261,1767132643112,-500.0,0.00016438,2]
[400115263,1767132643121,-500.0,0.00016438,2]
[400115265,1767132643131,-500.0,0.00016438,2]
[400115267,1767132643140,-500.0,0.00016438,2]
[400115269,1767132643149,-500.0,0.00016438,2]
[400115271,1767132643158,-500.0,0.00016438,2]
[400115273,1767132643167,-500.0,0.00016438,2]
[400115275,1767132643176,-500.0,0.00016438,2]
[400115276,1767132643185,-500.0,0.00016438,2]
[400115278,1767132643204,-500.0,0.00016438,2]
[400115280,1767132643213,-3000.0,0.00016438,2]
[400115282,1767132643223,-3000.0,0.00016438,2]
[400115285,1767132643232,-200.0,0.00016473,2]
[400115287,1767132643241,-250.0,0.00016547,2]
[400115289,1767132643251,-711.20382489,0.0001656,2]
[400115291,1767132643260,-3501.83600632,0.0001656,2]
[400115293,1767132643269,-3500.0,0.0001656,2]
[400115295,1767132643278,-2955.85,0.00016601,2]
[400115297,1767132643288,-9133.32457941,0.00016657,2]
[400115299,1767132643297,-272.39408849,0.00016917,2]
[400115301,1767132643306,-3500.0,0.00016986,2]
[400115303,1767132643315,-3500.0,0.00016986,2]
[400115305,1767132643325,-2621.34456173,0.00017087,2]
[400115307,1767132643334,-520.819804,0.00017108,2]
[400115309,1767132643344,-3325.33,0.00017194,2]
[400115311,1767132643353,-1742.43696975,0.00017281,2]
[400115313,1767132643363,-823.0,0.00017359,2]
[400115315,1767132643372,-3292.0,0.00017527,2]
[400115317,1767132643382,-3201.00680866,0.00017534,2]
[400115319,1767132643391,-4000.0,0.00017534,2]
[400115321,1767132643401,-3694.82,0.00017787,2]
[400115323,1767132643412,-278.55403227,0.00017842,2]
[400115325,1767132643421,-4500.0,0.00018082,2]
[400115327,1767132643431,-5000.0,0.0001863,2]
[400115329,1767132643440,-1627.71607813,0.00018638,2]
[400115331,1767132643449,-23617.34240088,0.000189,3]
[400115332,1767132643459,-302.84859387,0.000189,2]
[400115335,1767132643468,-302.84859387,0.000189,2]
[400115337,1767132643478,-308.44624726,0.00018917,2]
[400115338,1767132643487,-2621.34456173,0.00018931,2]
[400115340,1767132643497,-1152.0,0.00019034,2]
[400115342,1767132643510,-13544.08995543,0.00019078,2]
[400115345,1767132643520,-151.0,0.00019078,2]
[400115346,1767132643529,-151.0,0.00019078,2]
[400115348,1767132643539,-302.84859387,0.00019089,2]
[400115350,1767132643549,-302.84859387,0.00019089,2]
[400115352,1767132643559,-658.752585,0.00019178,2]
[400115354,1767132643568,-658.752585,0.00019178,2]
[400115356,1767132643577,-658.752585,0.00019178,2]
[400115358,1767132643587,-658.752585,0.00019178,2]
[400115359,1767132643597,-500.0,0.00019178,2]
[400115360,1767132643606,-500.0,0.00019178,2]
[400115361,1767132643617,-500.0,0.00019178,2]
[400115362,1767132643626,-500.0,0.00019178,2]
[400115363,1767132643640,-500.0,0.00019178,2]
[400115364,1767132643650,-500.0,0.00019178,2]
[400115365,1767132643661,-500.0,0.00019178,2]
[400115366,1767132643671,-500.0,0.00019178,2]
[400115367,1767132643681,-500.0,0.00019178,2]
[400115368,1767132643691,-500.0,0.00019178,2]
[400115369,1767132643701,-500.0,0.00019178,2]
[400115370,1767132643711,-500.0,0.00019178,2]
[400115371,1767132643721,-500.0,0.00019178,2]
[400115372,1767132643730,-500.0,0.00019178,2]
[400115373,1767132643739,-500.0,0.00019178,2]
[400115374,1767132643749,-500.0,0.00019178,2]
[400115375,1767132643758,-500.0,0.00019178,2]
[400115376,1767132643768,-500.0,0.00019178,2]
[400115377,1767132643777,-500.0,0.00019178,2]
[400115378,1767132643787,-500.0,0.00019178,2]
[400115379,1767132643796,-500.0,0.00019178,2]
[400115380,1767132643806,-500.0,0.00019178,2]
[400115381,1767132643815,-500.0,0.00019178,2]
[400115382,1767132643824,-500.0,0.00019178,2]
[400115383,1767132643834,-500.0,0.00019178,2]
[400115384,1767132643843,-500.0,0.00019178,2]
[400115385,1767132643853,-500.0,0.00019178,2]
[400115386,1767132643863,-500.0,0.00019178,2]
[400115387,1767132643872,-500.0,0.00019178,2]
[400115388,1767132643882,-500.0,0.00019178,2]
[400115389,1767132643892,-500.0,0.00019178,2]
[400115390,1767132643902,-500.0,0.00019178,2]
[400115391,1767132643912,-500.0,0.00019178,2]
[400115392,1767132643922,-500.0,0.00019178,2]
[400115393,1767132643932,-500.0,0.00019178,2]
[400115394,1767132643942,-500.0,0.00019178,2]
[400115395,1767132644045,-500.0,0.00019178,2]
[400115396,1767132644055,-500.0,0.00019178,2]
[400115397,1767132644065,-500.0,0.00019178,2]
[400115398,1767132644075,-500.0,0.00019178,2]
[400115399,1767132644084,-500.0,0.00019178,2]
[400115400,1767132644094,-500.0,0.00019178,2]
[400115401,1767132644103,-500.0,0.00019178,2]
[400115402,1767132644113,-500.0,0.00019178,2]
[400115403,1767132644122,-500.0,0.00019178,2]
[400115404,1767132644132,-500.0,0.00019178,2]
[400115405,1767132644142,-500.0,0.00019178,2]
[400115406,1767132644151,-500.0,0.00019178,2]
[400115407,1767132644161,-500.0,0.00019178,2]
[400115408,1767132644170,-500.0,0.00019178,2]
[400115409,1767132644180,-500.0,0.00019178,2]
[400115410,1767132644189,-500.0,0.00019178,2]
[400115411,1767132644206,-500.0,0.00019178,2]
[400115412,1767132644215,-500.0,0.00019178,2]
[400115413,1767132644225,-500.0,0.00019178,2]
[400115414,1767132644234,-500.0,0.00019178,2]
[400115415,1767132644244,-500.0,0.00019178,2]
[400115416,1767132644254,-500.0,0.00019178,2]
[400115417,1767132644263,-500.0,0.00019178,2]
[400115418,1767132644272,-500.0,0.00019178,2]
[400115419,1767132644282,-500.0,0.00019178,2]
[400115420,1767132644291,-500.0,0.00019178,2]
[400115421,1767132644300,-500.0,0.00019178,2]
[400115422,1767132644310,-500.0,0.00019178,2]
[400115424,1767132644321,-500.0,0.00019178,2]
[400115426,1767132644331,-500.0,0.00019178,2]
[400115428,1767132644340,-500.0,0.00019178,2]
[400115429,1767132644350,-500.0,0.00019178,2]
[400115431,1767132644360,-500.0,0.00019178,2]
[400115433,1767132644369,-500.0,0.00019178,2]
[400115435,1767132644379,-500.0,0.00019178,2]
[400115437,1767132644388,-500.0,0.00019178,2]
[400115439,1767132644398,-500.0,0.00019178,2]
[400115441,1767132644407,-500.0,0.00019178,2]
[400115443,1767132644417,-500.0,0.00019178,2]
[400115445,1767132644428,-500.0,0.00019178,2]
[400115447,1767132644437,-500.0,0.00019178,2]
[400115449,1767132644447,-500.0,0.00019178,2]
[400115451,1767132644456,-500.0,0.00019178,2]
[400115453,1767132644466,-500.0,0.00019178,2]
[400115455,1767132644475,-500.0,0.00019178,2]
[400115457,1767132644484,-500.0,0.00019178,2]
[400115459,1767132644493,-305.66603011,0.00019178,2]
[400115461,1767132644506,-500.0,0.00019178,2]
[400115463,1767132644515,-500.0,0.00019178,2]
[400115464,1767132644526,-500.0,0.00019178,2]
[400115465,1767132644535,-500.0,0.00019178,2]
[400115466,1767132644545,-500.0,0.00019178,2]
[400115467,1767132644554,-500.0,0.00019178,2]
[400115468,1767132644563,-500.0,0.00019178,2]
[400115469,1767132644572,-500.0,0.00019178,2]
[400115470,1767132644583,-500.0,0.00019178,2]
[400115471,1767132644594,-500.0,0.00019178,2]
[400115472,1767132644604,-500.0,0.00019178,2]
[400115473,1767132644614,-500.0,0.00019178,2]
[400115474,1767132644623,-500.0,0.00019178,2]
[400115475,1767132644633,-500.0,0.00019178,2]
[400115476,1767132644643,-500.0,0.00019178,2]
[400115477,1767132644653,-500.0,0.00019178,2]
[400115478,1767132644662,-500.0,0.00019178,2]
[400115479,1767132644673,-500.0,0.00019178,2]
[400115480,1767132644682,-500.0,0.00019178,2]
[400115481,1767132644692,-500.0,0.00019178,2]
[400115482,1767132644701,-500.0,0.00019178,2]
[400115483,1767132644711,-500.0,0.00019178,2]
[400115484,1767132644721,-500.0,0.00019178,2]
[400115485,1767132644731,-500.0,0.00019178,2]
[400115486,1767132644740,-369.95825721,0.00019178,2]
[400115487,1767132644750,-151.0,0.00019178,2]
[400115488,1767132644759,-151.0,0.00019178,2]
[400115489,1767132644769,-216.254292,0.00019178,2]
[400115490,1767132644778,-151.0,0.00019178,2]
[400115491,1767132644787,-151.0,0.00019178,2]
[400115492,1767132644797,-151.0,0.00019178,2]
[400115493,1767132644806,-151.0,0.00019178,2]
[400115494,1767132644815,-151.0,0.00019178,2]
[400115495,1767132644825,-235.0,0.00019178,2]
[400115496,1767132644834,-948.223993,0.00019178,2]
[400115497,1767132644843,-948.223993,0.00019178,2]
[400115498,1767132644853,-948.223993,0.00019178,2]
[400115499,1767132644862,-948.223993,0.00019178,2]
[400115501,1767132644871,-948.223993,0.00019178,2]
[400115502,1767132644881,-948.223993,0.00019178,2]
[400115503,1767132644891,-948.223993,0.00019178,2]
[400115504,1767132644901,-948.223993,0.00019178,2]
[400115505,1767132644911,-948.223993,0.00019178,2]
[400115506,1767132644920,-948.223993,0.00019178,2]
[400115507,1767132644930,-948.223993,0.00019178,2]
[400115508,1767132644940,-948.223993,0.00019178,2]
[400115509,1767132644951,-150.0,0.00019178,2]
[400115510,1767132644961,-5500.0,0.00019178,2]
[400115511,1767132644972,-231.33226353,0.00019187,2]
[400115512,1767132644982,-416.39807436,0.00019187,2]
[400115513,1767132644992,-740.2632433,0.00019187,2]
[400115514,1767132645002,-1156.66131766,0.00019187,2]
[400115515,1767132645011,-159.47,0.000192,2]
[400115516,1767132645021,-1552.86,0.000192,2]
[400115517,1767132645030,-165.69,0.000192,2]
[400115518,1767132645040,-8981.25,0.000192,2]
[400115519,1767132645050,-166.34,0.000192,2]
[400115520,1767132645059,-302.84859387,0.00019278,2]
[400115521,1767132645069,-302.84859387,0.00019278,2]
[400115522,1767132645079,-4609.0,0.0001928,2]
[400115523,1767132645088,-1742.43696975,0.00019298,2]
[400115525,1767132645098,-300.0,0.00019315,2]
[400115527,1767132645107,-450.0,0.00019452,2]
[400115529,1767132645117,-302.84859387,0.00019467,2]
[400115531,1767132645127,-302.84859387,0.00019467,2]
[400115533,1767132645136,-600.0,0.00019589,2]
[400115535,1767132645146,-442.77389019,0.00019618,2]
[400115536,1767132645155,-302.84859387,0.00019656,2]
[400115539,1767132645166,-302.84859387,0.00019656,2]
[400115541,1767132645176,-556.1484877,0.00019726,2]
[400115543,1767132645185,-6000.0,0.00019726,2]
[400115545,1767132645195,-454.27289081,0.00019845,4]
[400115546,1767132645204,-454.27289081,0.00019845,4]
[400115548,1767132645214,-179.30196423,0.0002,2]
[400115550,1767132645223,-210.00651371,0.0002,2]
[400115551,1767132645232,-454.27289081,0.00020034,4]
[400115553,1767132645241,-454.27289081,0.00020034,4]
[400115555,1767132645251,-9133.32457941,0.00020147,2]
[400115556,1767132645260,-339.67439185,0.00020198,2]
[400115557,1767132645270,-388.19930497,0.00020198,2]
[400115558,1767132645279,-606.56141402,0.00020198,2]
[400115559,1767132645289,-454.27289081,0.00020223,4]
[400115560,1767132645299,-454.27289081,0.00020223,4]
[400115561,1767132645308,-2204.33745853,0.00020274,2]
[400115562,1767132645318,-454.27289081,0.00020412,4]
[400115563,1767132645328,-454.27289081,0.00020412,4]
[400115564,1767132645339,-1000.0,0.000205,2]
[400115565,1767132645348,-883.431964,0.00020548,2]
[400115566,1767132645358,-455.02970952,0.00020601,4]
[400115567,1767132645368,-317.41903437,0.00020601,4]
[400115568,1767132645377,-232.19377429,0.00020651,2]
[400115569,1767132645387,-170.98673883,0.00020651,2]
[400115570,1767132645396,-2621.34456173,0.00020774,2]
[400115571,1767132645405,-1613.0,0.00020871,2]
[400115572,1767132645416,-344.49840603,0.00020917,2]
[400115573,1767132645425,-4003.8957135,0.0002111,2]
[400115574,1767132645435,-1802.00674928,0.0002111,2]
[400115575,1767132645444,-13544.08995535,0.00021135,2]
[400115576,1767132645454,-6453.0,0.00021208,2]
[400115577,1767132645463,-151.0,0.00021313,2]
[400115578,1767132645472,-191.682356,0.00021313,2]
[400115579,1767132645482,-151.0,0.00021313,2]
[400115580,1767132645491,-151.0,0.00021313,2]
[400115581,1767132645502,-1742.43696975,0.00021316,2]
[400115582,1767132645514,-8981.25,0.000214,2]
[400115583,1767132645523,-948.223993,0.000214,2]
[400115584,1767132645532,-948.223993,0.000214,2]
[400115585,1767132645541,-948.223993,0.000214,2]
[400115587,1767132645551,-948.223993,0.000214,2]
[400115589,1767132645561,-250.17766694,0.00021511,2]
[400115591,1767132645571,-285.91733364,0.00021511,2]
[400115592,1767132645581,-446.29908799,0.00021511,2]
[400115593,1767132645590,-226.30464065,0.00021511,2]
[400115594,1767132645600,-407.34835317,0.00021511,2]
[400115595,1767132645610,-724.17485008,0.00021511,2]
[400115596,1767132645620,-1131.52320325,0.00021511,2]
[400115597,1767132645631,-1629.39341268,0.00021511,2]
[400115598,1767132645642,-2215.56769289,0.00021511,2]
[400115599,1767132645652,-5000.0,0.00021512,2]
[400115600,1767132645662,-23617.3,0.000217,3]
[400115601,1767132645672,-151.0,0.000217,2]
[400115602,1767132645682,-151.0,0.000217,2]
[400115603,1767132645691,-2000.0,0.000219,7]
[400115604,1767132645701,-515.71378408,0.00021917,2]
[400115605,1767132645710,-500.08133129,0.00021917,2]
[400115606,1767132645720,-500.79380713,0.00021917,2]
[400115607,1767132645731,-257.247478,0.00021917,2]
[400115608,1767132645740,-3824.025904,0.00021917,2]
[400115609,1767132645749,-427.21938991,0.00021917,2]
[400115610,1767132645763,-278.66468423,0.00021917,2]
[400115611,1767132645772,-490.82856168,0.00021917,2]
[400115612,1767132645782,-490.84153265,0.00021917,2]
[400115613,1767132645791,-357.75121892,0.00021917,2]
[400115614,1767132645801,-500.0,0.00021917,2]
[400115615,1767132645811,-520.91238729,0.00021917,2]
[400115616,1767132645821,-480.85340029,0.00021917,2]
[400115617,1767132645830,-340.25687684,0.00021917,2]
[400115618,1767132645839,-372.65599779,0.00021917,2]
[400115619,1767132645849,-214.73939159,0.00021917,2]
[400115620,1767132645858,-418.05862632,0.00021917,2]
[400115621,1767132645867,-221.34309167,0.00021917,2]
[400115622,1767132645877,-470.17191108,0.00021917,2]
[400115623,1767132645889,-387.06567405,0.00021917,2]